{"text_format":"3","workbook":"xlsx","n_sheets":6,"sheets":["Початок","Інформаційна панель","Витрати та доходи","Звіт про бюджет","Списки даних","Зведена таблиця категорій"],"not_rendered":{"charts":3,"defined_names":23,"pivot_tables":2},"read":"whole","date_system":"1900"}

{"sheet":"Початок","index":0,"n_rows":8,"n_cols":2,"rows_kept":8}
[null,"Інформація про шаблон"]
[null,"Використовуйте цей шаблон, щоб створити сімейний бюджет на півмісяця."]
[null,"Аркуш \"Інформаційна панель\" містить діаграми місячних і річних підсумків, а також таблицю доходів і витрат за два тижні."]
[null,"Введіть категорії на аркуші \"Списки даних\" і значення на аркуші \"Доходи та витрати\"."]
[null,"Оновіть зведену таблицю на аркуші \"Звіт про бюджет\"."]
[null,"Примітка."]
[null,"Додаткові вказівки наведено в стовпці A на всіх аркушах. Цей текст приховано навмисно. Щоб вилучити текст, виберіть стовпець A й натисніть клавішу Delete. "]
[null,"Щоб дізнатися більше про таблицю, натисніть у ній клавіші Shift+F10, виберіть параметр \"Таблиця\", а потім – \"Текст заміщення\". Щоб дізнатися більше про зведену таблицю, натисніть у ній клавіші Shift+F10, виберіть \"Параметри зведеної таблиці\" та перейдіть на вкладку \"Текст заміщення\"."]

{"sheet":"Інформаційна панель","index":1,"n_rows":12,"n_cols":15,"rows_kept":12,"merged":[[0,1,0,13],[1,2,1,7]]}
["Створіть інформаційну панель для щомісячних і річних підсумків та доходів і витрат за два тижні на цьому аркуші. Корисні вказівки з використання цього аркуша наведено в клітинках цього стовпця. Назва цієї книги вказана в клітинці праворуч, а назва аркуша – у клітинці O1.","Сімейний бюджет на півмісяця",{"$nulls":12},"ІНФОРМАЦІЙНА ПАНЕЛЬ"]
["Щоб змінити місяць у клітинці праворуч, виберіть повзунок у клітинці C2. Щоб змінити рік у клітинці I2, виберіть повзунок у клітинці J2.",{"$f":"CHOOSE(НомерМісяця,\"СІЧЕНЬ\",\"ЛЮТИЙ\",\"БЕРЕЗЕНЬ\",\"КВІТЕНЬ\",\"ТРАВЕНЬ\",\"ЧЕРВЕНЬ\",\"ЛИПЕНЬ\",\"СЕРПЕНЬ\",\"ВЕРЕСЕНЬ\",\"ЖОВТЕНЬ\",\"ЛИСТОПАД\",\"ГРУДЕНЬ\")","v":"ГРУДЕНЬ"},12,{"$nulls":5},{"$f":"YEAR(TODAY())","v":2022}]
["Надпис \"Підсумки за місяць\" розташовано в клітинці праворуч, а надпис \"Підсумки за рік\" – у клітинці I3.","ПІДСУМОК ЗА МІСЯЦЬ",{"$nulls":6},"ПІДСУМОК ЗА РІК"]
["Гістограма порівняння загальної суми місячного доходу та загальної суми місячних витрат розташована в клітинці C4, а гістограма порівняння загальної суми річного доходу та загальної суми річних витрат – у клітинці J4. Подальші вказівки наведено в клітинці A8.","ДОХОДИ",null,{"$f":"ПідсумкиЩомісячнихВитрат","v":{"v":0,"d":"0 ₴"}},{"$nulls":4},"ДОХОДИ",null,null,{"$f":"ПідсумкиРічнихВитрат","v":{"v":10742,"d":"10,742 ₴"}}]
[null,"ВИТРАТИ",null,{"$f":"ПідсумкиЩомісячнихДоходів","v":{"v":0,"d":"0 ₴"}},{"$nulls":4},"ВИТРАТИ",null,null,{"$f":"ПідсумкиРічнихДоходів","v":{"v":13200,"d":"13,200 ₴"}}]
[]
[]
["Таблиця \"Інформаційна панель\", що починається в клітинці праворуч, оновлюється автоматично.","Категорія","СІЧЕНЬ","ЛЮТИЙ","БЕРЕЗЕНЬ","КВІТЕНЬ","ТРАВЕНЬ","ЧЕРВЕНЬ","ЛИПЕНЬ","СЕРПЕНЬ","ВЕРЕСЕНЬ","ЖОВТЕНЬ","ЛИСТОПАД","ГРУДЕНЬ","Міні-діаграма"]
[null,"Дохід 1–15",{"$f":"SUMIFS(Доходи[СУМА],Доходи[ДАТА],\"<=\"&ДатаСередини,Доходи[ДАТА],\">=\"&ДатаПочатку)","v":{"v":0,"d":"0.00 ₴"}},{"$f":"SUMIFS(Доходи[СУМА],Доходи[ДАТА],\"<=\"&ДатаСередини,Доходи[ДАТА],\">=\"&ДатаПочатку)","v":{"v":0,"d":"0.00 ₴"}},{"$f":"SUMIFS(Доходи[СУМА],Доходи[ДАТА],\"<=\"&ДатаСередини,Доходи[ДАТА],\">=\"&ДатаПочатку)","v":{"v":1300,"d":"1,300.00 ₴"}},{"$f":"SUMIFS(Доходи[СУМА],Доходи[ДАТА],\"<=\"&ДатаСередини,Доходи[ДАТА],\">=\"&ДатаПочатку)","v":{"v":2600,"d":"2,600.00 ₴"}},{"$f":"SUMIFS(Доходи[СУМА],Доходи[ДАТА],\"<=\"&ДатаСередини,Доходи[ДАТА],\">=\"&ДатаПочатку)","v":{"v":2600,"d":"2,600.00 ₴"}},{"$f":"SUMIFS(Доходи[СУМА],Доходи[ДАТА],\"<=\"&ДатаСередини,Доходи[ДАТА],\">=\"&ДатаПочатку)","v":{"v":0,"d":"0.00 ₴"}},{"$f":"SUMIFS(Доходи[СУМА],Доходи[ДАТА],\"<=\"&ДатаСередини,Доходи[ДАТА],\">=\"&ДатаПочатку)","v":{"v":0,"d":"0.00 ₴"}},{"$f":"SUMIFS(Доходи[СУМА],Доходи[ДАТА],\"<=\"&ДатаСередини,Доходи[ДАТА],\">=\"&ДатаПочатку)","v":{"v":0,"d":"0.00 ₴"}},{"$f":"SUMIFS(Доходи[СУМА],Доходи[ДАТА],\"<=\"&ДатаСередини,Доходи[ДАТА],\">=\"&ДатаПочатку)","v":{"v":0,"d":"0.00 ₴"}},{"$f":"SUMIFS(Доходи[СУМА],Доходи[ДАТА],\"<=\"&ДатаСередини,Доходи[ДАТА],\">=\"&ДатаПочатку)","v":{"v":0,"d":"0.00 ₴"}},{"$f":"SUMIFS(Доходи[СУМА],Доходи[ДАТА],\"<=\"&ДатаСередини,Доходи[ДАТА],\">=\"&ДатаПочатку)","v":{"v":0,"d":"0.00 ₴"}},{"$f":"SUMIFS(Доходи[СУМА],Доходи[ДАТА],\"<=\"&ДатаСередини,Доходи[ДАТА],\">=\"&ДатаПочатку)","v":{"v":0,"d":"0.00 ₴"}}]
[null,"Дохід 16–кінець місяця",{"$f":"SUMIFS(Доходи[СУМА],Доходи[ДАТА],\"<=\"&ДатаКінця,Доходи[ДАТА],\">=\"&ДатаСередини+1)","v":{"v":0,"d":"0.00 ₴"}},{"$f":"SUMIFS(Доходи[СУМА],Доходи[ДАТА],\"<=\"&ДатаКінця,Доходи[ДАТА],\">=\"&ДатаСередини+1)","v":{"v":0,"d":"0.00 ₴"}},{"$f":"SUMIFS(Доходи[СУМА],Доходи[ДАТА],\"<=\"&ДатаКінця,Доходи[ДАТА],\">=\"&ДатаСередини+1)","v":{"v":3100,"d":"3,100.00 ₴"}},{"$f":"SUMIFS(Доходи[СУМА],Доходи[ДАТА],\"<=\"&ДатаКінця,Доходи[ДАТА],\">=\"&ДатаСередини+1)","v":{"v":3100,"d":"3,100.00 ₴"}},{"$f":"SUMIFS(Доходи[СУМА],Доходи[ДАТА],\"<=\"&ДатаКінця,Доходи[ДАТА],\">=\"&ДатаСередини+1)","v":{"v":500,"d":"500.00 ₴"}},{"$f":"SUMIFS(Доходи[СУМА],Доходи[ДАТА],\"<=\"&ДатаКінця,Доходи[ДАТА],\">=\"&ДатаСередини+1)","v":{"v":0,"d":"0.00 ₴"}},{"$f":"SUMIFS(Доходи[СУМА],Доходи[ДАТА],\"<=\"&ДатаКінця,Доходи[ДАТА],\">=\"&ДатаСередини+1)","v":{"v":0,"d":"0.00 ₴"}},{"$f":"SUMIFS(Доходи[СУМА],Доходи[ДАТА],\"<=\"&ДатаКінця,Доходи[ДАТА],\">=\"&ДатаСередини+1)","v":{"v":0,"d":"0.00 ₴"}},{"$f":"SUMIFS(Доходи[СУМА],Доходи[ДАТА],\"<=\"&ДатаКінця,Доходи[ДАТА],\">=\"&ДатаСередини+1)","v":{"v":0,"d":"0.00 ₴"}},{"$f":"SUMIFS(Доходи[СУМА],Доходи[ДАТА],\"<=\"&ДатаКінця,Доходи[ДАТА],\">=\"&ДатаСередини+1)","v":{"v":0,"d":"0.00 ₴"}},{"$f":"SUMIFS(Доходи[СУМА],Доходи[ДАТА],\"<=\"&ДатаКінця,Доходи[ДАТА],\">=\"&ДатаСередини+1)","v":{"v":0,"d":"0.00 ₴"}},{"$f":"SUMIFS(Доходи[СУМА],Доходи[ДАТА],\"<=\"&ДатаКінця,Доходи[ДАТА],\">=\"&ДатаСередини+1)","v":{"v":0,"d":"0.00 ₴"}}]
[null,"Витрати 1–15",{"$f":"SUMIFS(Витрати[СУМА],Витрати[ДАТА],\"<=\"&ДатаСередини+1,Витрати[ДАТА],\">=\"&ДатаПочатку)","v":{"v":0,"d":"0.00 ₴"}},{"$f":"SUMIFS(Витрати[СУМА],Витрати[ДАТА],\"<=\"&ДатаСередини+1,Витрати[ДАТА],\">=\"&ДатаПочатку)","v":{"v":0,"d":"0.00 ₴"}},{"$f":"SUMIFS(Витрати[СУМА],Витрати[ДАТА],\"<=\"&ДатаСередини+1,Витрати[ДАТА],\">=\"&ДатаПочатку)","v":{"v":1150,"d":"1,150.00 ₴"}},{"$f":"SUMIFS(Витрати[СУМА],Витрати[ДАТА],\"<=\"&ДатаСередини+1,Витрати[ДАТА],\">=\"&ДатаПочатку)","v":{"v":5225,"d":"5,225.00 ₴"}},{"$f":"SUMIFS(Витрати[СУМА],Витрати[ДАТА],\"<=\"&ДатаСередини+1,Витрати[ДАТА],\">=\"&ДатаПочатку)","v":{"v":3242,"d":"3,242.00 ₴"}},{"$f":"SUMIFS(Витрати[СУМА],Витрати[ДАТА],\"<=\"&ДатаСередини+1,Витрати[ДАТА],\">=\"&ДатаПочатку)","v":{"v":0,"d":"0.00 ₴"}},{"$f":"SUMIFS(Витрати[СУМА],Витрати[ДАТА],\"<=\"&ДатаСередини+1,Витрати[ДАТА],\">=\"&ДатаПочатку)","v":{"v":0,"d":"0.00 ₴"}},{"$f":"SUMIFS(Витрати[СУМА],Витрати[ДАТА],\"<=\"&ДатаСередини+1,Витрати[ДАТА],\">=\"&ДатаПочатку)","v":{"v":0,"d":"0.00 ₴"}},{"$f":"SUMIFS(Витрати[СУМА],Витрати[ДАТА],\"<=\"&ДатаСередини+1,Витрати[ДАТА],\">=\"&ДатаПочатку)","v":{"v":0,"d":"0.00 ₴"}},{"$f":"SUMIFS(Витрати[СУМА],Витрати[ДАТА],\"<=\"&ДатаСередини+1,Витрати[ДАТА],\">=\"&ДатаПочатку)","v":{"v":0,"d":"0.00 ₴"}},{"$f":"SUMIFS(Витрати[СУМА],Витрати[ДАТА],\"<=\"&ДатаСередини+1,Витрати[ДАТА],\">=\"&ДатаПочатку)","v":{"v":0,"d":"0.00 ₴"}},{"$f":"SUMIFS(Витрати[СУМА],Витрати[ДАТА],\"<=\"&ДатаСередини+1,Витрати[ДАТА],\">=\"&ДатаПочатку)","v":{"v":0,"d":"0.00 ₴"}}]
[null,"Витрати 16–кінець місяця",{"$f":"SUMIFS(Витрати[СУМА],Витрати[ДАТА],\"<=\"&ДатаКінця,Витрати[ДАТА],\">=\"&ДатаСередини+1)","v":{"v":0,"d":"0.00 ₴"}},{"$f":"SUMIFS(Витрати[СУМА],Витрати[ДАТА],\"<=\"&ДатаКінця,Витрати[ДАТА],\">=\"&ДатаСередини+1)","v":{"v":75,"d":"75.00 ₴"}},{"$f":"SUMIFS(Витрати[СУМА],Витрати[ДАТА],\"<=\"&ДатаКінця,Витрати[ДАТА],\">=\"&ДатаСередини+1)","v":{"v":200,"d":"200.00 ₴"}},{"$f":"SUMIFS(Витрати[СУМА],Витрати[ДАТА],\"<=\"&ДатаКінця,Витрати[ДАТА],\">=\"&ДатаСередини+1)","v":{"v":900,"d":"900.00 ₴"}},{"$f":"SUMIFS(Витрати[СУМА],Витрати[ДАТА],\"<=\"&ДатаКінця,Витрати[ДАТА],\">=\"&ДатаСередини+1)","v":{"v":500,"d":"500.00 ₴"}},{"$f":"SUMIFS(Витрати[СУМА],Витрати[ДАТА],\"<=\"&ДатаКінця,Витрати[ДАТА],\">=\"&ДатаСередини+1)","v":{"v":0,"d":"0.00 ₴"}},{"$f":"SUMIFS(Витрати[СУМА],Витрати[ДАТА],\"<=\"&ДатаКінця,Витрати[ДАТА],\">=\"&ДатаСередини+1)","v":{"v":0,"d":"0.00 ₴"}},{"$f":"SUMIFS(Витрати[СУМА],Витрати[ДАТА],\"<=\"&ДатаКінця,Витрати[ДАТА],\">=\"&ДатаСередини+1)","v":{"v":0,"d":"0.00 ₴"}},{"$f":"SUMIFS(Витрати[СУМА],Витрати[ДАТА],\"<=\"&ДатаКінця,Витрати[ДАТА],\">=\"&ДатаСередини+1)","v":{"v":0,"d":"0.00 ₴"}},{"$f":"SUMIFS(Витрати[СУМА],Витрати[ДАТА],\"<=\"&ДатаКінця,Витрати[ДАТА],\">=\"&ДатаСередини+1)","v":{"v":0,"d":"0.00 ₴"}},{"$f":"SUMIFS(Витрати[СУМА],Витрати[ДАТА],\"<=\"&ДатаКінця,Витрати[ДАТА],\">=\"&ДатаСередини+1)","v":{"v":0,"d":"0.00 ₴"}},{"$f":"SUMIFS(Витрати[СУМА],Витрати[ДАТА],\"<=\"&ДатаКінця,Витрати[ДАТА],\">=\"&ДатаСередини+1)","v":{"v":0,"d":"0.00 ₴"}}]

{"sheet":"Витрати та доходи","index":2,"n_rows":36,"n_cols":9,"rows_kept":36,"merged":[[0,1,0,6],[0,7,0,8]]}
["Створіть список доходів і витрат на цьому аркуші. Корисні вказівки з використання цього аркуша наведено в клітинках цього стовпця. Назва книги вказана в клітинці праворуч, а назва аркуша – у клітинці H1.",{"$f":"Щопівмісячний_домашній_бюджет","v":"Сімейний бюджет на півмісяця"},{"$nulls":5},"ДОХОДИ ТА ВИТРАТИ"]
["Надпис \"Дохід\" розташовано в клітинці праворуч, а надпис \"Витрати\" – у клітинці F2.","ДОХОДИ",{"$nulls":3},"ВИТРАТИ"]
["Введіть відомості в таблицю \"Дохід\", починаючи з клітинки праворуч, і в таблицю \"Витрати\", починаючи з клітинки F3.","ДАТА","ОПИС","СУМА",null,"ДАТА","КАТЕГОРІЯ","ОПИС","СУМА"]
[null,{"$f":"TODAY()","v":"2022-05-16"},"Премія",{"v":500,"d":"500.00 ₴"},null,{"$f":"TODAY()","v":"2022-05-16"},"Медицина","Страхування",{"v":500,"d":"500.00 ₴"}]
[null,{"$f":"TODAY()-14","v":"2022-05-02"},"Зарплата Девіда",{"v":1300,"d":"1,300.00 ₴"},null,{"$f":"TODAY()-7","v":"2022-05-09"},"Домогосподарство","Іпотека",{"v":1000,"d":"1,000.00 ₴"}]
[null,{"$f":"TODAY()-14","v":"2022-05-02"},"Зарплата Пет",{"v":1300,"d":"1,300.00 ₴"},null,"2022-05-09","Домогосподарство","Електроенергія",{"v":100,"d":"100.00 ₴"}]
[null,{"$f":"TODAY()-28","v":"2022-04-18"},"Зарплата Девіда",{"v":1500,"d":"1,500.00 ₴"},null,"2022-05-09","Домогосподарство","Вода, каналізація",{"v":50,"d":"50.00 ₴"}]
[null,{"$f":"TODAY()-28","v":"2022-04-18"},"Зарплата Пет",{"v":1600,"d":"1,600.00 ₴"},null,"2022-05-09","Домогосподарство","Вивіз сміття",{"v":25,"d":"25.00 ₴"}]
[null,{"$f":"TODAY()-42","v":"2022-04-04"},"Зарплата Девіда",{"v":1300,"d":"1,300.00 ₴"},null,"2022-05-09","Домогосподарство","Мобільний телефон",{"v":100,"d":"100.00 ₴"}]
[null,{"$f":"TODAY()-42","v":"2022-04-04"},"Зарплата Пет",{"v":1300,"d":"1,300.00 ₴"},null,"2022-05-09","Домогосподарство","Мобільний телефон",{"v":30,"d":"30.00 ₴"}]
[null,{"$f":"TODAY()-56","v":"2022-03-21"},"Зарплата Девіда",{"v":1500,"d":"1,500.00 ₴"},null,"2022-05-09","Домогосподарство","Іпотека",{"v":50,"d":"50.00 ₴"}]
[null,{"$f":"TODAY()-56","v":"2022-03-21"},"Зарплата Пет",{"v":1600,"d":"1,600.00 ₴"},null,"2022-05-09","Домогосподарство","Мобільний телефон",{"v":50,"d":"50.00 ₴"}]
[null,{"$f":"TODAY()-70","v":"2022-03-07"},"Зарплата Девіда",{"v":1300,"d":"1,300.00 ₴"},null,{"$f":"TODAY()-7","v":"2022-05-09"},"Домогосподарство","Мобільний телефон",{"v":25,"d":"25.00 ₴"}]
[{"$nulls":5},{"$f":"TODAY()-8","v":"2022-05-08"},"Домогосподарство","Електроенергія",{"v":100,"d":"100.00 ₴"}]
[{"$nulls":5},{"$f":"TODAY()-9","v":"2022-05-07"},"Розваги","Фільми",{"v":37,"d":"37.00 ₴"}]
[{"$nulls":5},{"$f":"TODAY()-10","v":"2022-05-06"},"Їжа","Продукти",{"v":350,"d":"350.00 ₴"}]
[{"$nulls":5},{"$f":"TODAY()-11","v":"2022-05-05"},"Їжа","Ресторани та кафе",{"v":75,"d":"75.00 ₴"}]
[{"$nulls":5},{"$f":"TODAY()-12","v":"2022-05-04"},"Діти","Кишенькові гроші",{"v":150,"d":"150.00 ₴"}]
[{"$nulls":5},{"$f":"TODAY()-13","v":"2022-05-03"},"Інвестиційні рахунки","Заощадження",{"v":250,"d":"250.00 ₴"}]
[{"$nulls":5},{"$f":"TODAY()-14","v":"2022-05-02"},"Інвестиційні рахунки","Депозит",{"v":250,"d":"250.00 ₴"}]
[{"$nulls":5},{"$f":"TODAY()-15","v":"2022-05-01"},"Особисте","Спортивно-оздоровчий клуб",{"v":100,"d":"100.00 ₴"}]
[{"$nulls":5},{"$f":"TODAY()-16","v":"2022-04-30"},"Домашні тварини","Їжа",{"v":50,"d":"50.00 ₴"}]
[{"$nulls":5},{"$f":"TODAY()-20","v":"2022-04-26"},"Домашні тварини","Грумінг",{"v":50,"d":"50.00 ₴"}]
[{"$nulls":5},{"$f":"TODAY()-20","v":"2022-04-26"},"Домашні тварини","Інше",{"v":50,"d":"50.00 ₴"}]
[{"$nulls":5},{"$f":"TODAY()-25","v":"2022-04-21"},"Транспорт","Оплата автомобіля 1 ",{"v":300,"d":"300.00 ₴"}]
[{"$nulls":5},{"$f":"TODAY()-25","v":"2022-04-21"},"Транспорт","Оплата автомобіля 2 ",{"v":350,"d":"350.00 ₴"}]
[{"$nulls":5},{"$f":"TODAY()-25","v":"2022-04-21"},"Транспорт","Страхування авто",{"v":50,"d":"50.00 ₴"}]
[{"$nulls":5},{"$f":"TODAY()-30","v":"2022-04-16"},"Транспорт","Пальне",{"v":50,"d":"50.00 ₴"}]
[{"$nulls":5},{"$f":"TODAY()-31","v":"2022-04-15"},"Транспорт","Пальне",{"v":25,"d":"25.00 ₴"}]
[{"$nulls":5},{"$f":"TODAY()-42","v":"2022-04-04"},"Транспорт","Оплата автомобіля 2 ",{"v":150,"d":"150.00 ₴"}]
[{"$nulls":5},{"$f":"TODAY()-45","v":"2022-04-01"},"Домогосподарство","Іпотека",{"v":5000,"d":"5,000.00 ₴"}]
[{"$nulls":5},{"$f":"TODAY()-50","v":"2022-03-27"},"Домогосподарство","Електроенергія",{"v":200,"d":"200.00 ₴"}]
[{"$nulls":5},{"$f":"TODAY()-65","v":"2022-03-12"},"Домогосподарство","Мобільний телефон",{"v":100,"d":"100.00 ₴"}]
[{"$nulls":5},{"$f":"TODAY()-70","v":"2022-03-07"},"Домогосподарство","Вивіз сміття",{"v":50,"d":"50.00 ₴"}]
[{"$nulls":5},{"$f":"TODAY()-75","v":"2022-03-02"},"Домогосподарство","Іпотека",{"v":1000,"d":"1,000.00 ₴"}]
[{"$nulls":5},{"$f":"TODAY()-78","v":"2022-02-27"},"Розваги","Фільми",{"v":75,"d":"75.00 ₴"}]

{"sheet":"Звіт про бюджет","index":3,"n_rows":26,"n_cols":6,"rows_kept":26,"merged":[[0,1,0,4],[1,1,1,3],[4,3,4,5]]}
["Створіть звіт про бюджет на цьому аркуші. Корисні вказівки з використання цього аркуша наведено в клітинках цього стовпця. Назва книги вказана в клітинці праворуч, а назва аркуша – у клітинці F1.",{"$f":"Щопівмісячний_домашній_бюджет","v":"Сімейний бюджет на півмісяця"},{"$nulls":3},"ЗВІТ ПРО БЮДЖЕТ"]
["Виберіть \"Роки\", \"Квартали\", \"Місяці\" або \"Дні\" та скористайтеся повзунком у клітинці праворуч, щоб отримати зведену таблицю витрат за вибраний період. Роздільник \"Категорія\" для фільтрування даних зведеної таблиці розташовано в клітинці E2, а роздільник \"Опис\" – у клітинці F2.","Часова шкала для фільтрування розташована в цій клітинці.",null,null,"Роздільник для фільтрування даних зведеної таблиці за категорією розташовано в цій клітинці.","Роздільник для фільтрування даних зведеної таблиці за описом розташовано в цій клітинці."]
["Пораду наведено в клітинці праворуч.","Натисніть клавіші Shift+F10 у зведеній таблиці \"Витрати\" та виберіть параметр Оновити, щоб оновити дані на цьому аркуші, або натисніть кнопку Оновити на вкладці Аналіз."]
["Надпис \"Витрати\" розташовано в клітинці праворуч.","ВИТРАТИ"]
["Зведена таблиця витрат починається в клітинці праворуч. Надпис \"Підсумки за категоріями\" розташовано в клітинці D4.","Позначки рядків","Сума з СУМА","Підсумки за категоріями"]
["Секторна діаграма, що порівнює підсумок кожної категорії, розташована в клітинці D6.","Вивіз сміття",{"v":75,"d":"75.00 ₴"}]
[null,"Вода, каналізація",{"v":50,"d":"50.00 ₴"}]
[null,"Грумінг",{"v":50,"d":"50.00 ₴"}]
[null,"Депозит",{"v":250,"d":"250.00 ₴"}]
[null,"Електроенергія",{"v":400,"d":"400.00 ₴"}]
[null,"Заощадження",{"v":250,"d":"250.00 ₴"}]
[null,"Інше",{"v":50,"d":"50.00 ₴"}]
[null,"Іпотека",{"v":7050,"d":"7,050.00 ₴"}]
[null,"Їжа",{"v":50,"d":"50.00 ₴"}]
[null,"Кишенькові гроші",{"v":150,"d":"150.00 ₴"}]
[null,"Мобільний телефон",{"v":305,"d":"305.00 ₴"}]
[null,"Оплата автомобіля 1 ",{"v":300,"d":"300.00 ₴"}]
[null,"Оплата автомобіля 2 ",{"v":500,"d":"500.00 ₴"}]
[null,"Пальне",{"v":75,"d":"75.00 ₴"}]
[null,"Продукти",{"v":350,"d":"350.00 ₴"}]
[null,"Ресторани та кафе",{"v":75,"d":"75.00 ₴"}]
[null,"Спортивно-оздоровчий клуб",{"v":100,"d":"100.00 ₴"}]
[null,"Страхування",{"v":500,"d":"500.00 ₴"}]
[null,"Страхування авто",{"v":50,"d":"50.00 ₴"}]
[null,"Фільми",{"v":112,"d":"112.00 ₴"}]
[null,"Загальний підсумок",{"v":10742,"d":"10,742.00 ₴"}]

{"sheet":"Списки даних","index":4,"n_rows":8,"n_cols":13,"rows_kept":8,"merged":[[0,1,0,11]]}
["Введіть дані категорій на цьому аркуші, щоб заповнити розкривні списки в таблиці \"Витрати\" на аркуші \"Витрати та доходи\". Щоб оновити списки, змініть назви категорій або описи під кожною категорією. Корисні вказівки з використання цього аркуша наведено в клітинках цього стовпця. Назва книги вказана в клітинці праворуч, а назва аркуша – у клітинці M1.",{"$f":"Щопівмісячний_домашній_бюджет","v":"Сімейний бюджет на півмісяця"},{"$nulls":10},"СПИСКИ ДАНИХ"]
["Пораду наведено в клітинці праворуч.","Налаштування         Наведені нижче дані категорій заповнюють розкривні списки в таблиці \"Витрати\" на аркуші \"Витрати та доходи\". Щоб оновити списки, змініть назви категорій або описи під кожною категорією."]
["Введіть або змініть назви категорій або описи під кожною категорією в таблиці, починаючи з клітинки праворуч.","Домогосподарство","Розваги","Їжа","Подарунки та пожертви","Діти","Інвестиційні рахунки","Медицина","Інше","Особисте","Домашні тварини","Податки та юридичні послуги","Транспорт"]
[null,"Іпотека","Фільми","Продукти","На благодійність 1","Одяг","Індивідуальний пенсійний рахунок","Лікар і клініка","Інше","Одяг","Їжа","Федеральні","Оплата автомобіля 1 "]
[null,"Електроенергія","Відео та фільми","Ресторани та кафе","На благодійність 2","Іграшки та ігри","Заощадження","Страхування","Організаційні внески","Волосся та нігті","Приладдя","На майно","Оплата автомобіля 2 "]
[null,"Вода, каналізація","Музика",null,"На благодійність 3","Кишенькові гроші","Поточний рахунок",null,null,"Хімчистка","Медицина","Місцеві","Страхування авто"]
[null,"Вивіз сміття","Концерти та театр",null,"Подарунок","Внески та збори","Пенсійний фонд",null,null,"Спортивно-оздоровчий клуб","Грумінг","Інше","Ліцензування та реєстрація"]
[null,"Мобільний телефон","Спортивні події",null,null,"Шкільне приладдя","Депозит",null,null,"Покупки","Інше","Адвокат","Пальне"]

{"sheet":"Зведена таблиця категорій","index":5,"n_rows":13,"n_cols":13,"rows_kept":13,"hidden":true}
[null,"Сімейний бюджет на півмісяця",{"$nulls":10},"ЗВЕДЕННЯ КАТЕГОРІЙ"]
[null,"Ця зведена таблиця є джерелом даних для зведеної діаграми \"Підсумки за категоріями\" на аркуші \"Звіт про бюджет\". "]
[null,"Позначки рядків","Сума з СУМА"]
[null,"Діти",{"v":150,"d":"150 ₴"}]
[null,"Домашні тварини",{"v":150,"d":"150 ₴"}]
[null,"Домогосподарство",{"v":7880,"d":"7,880 ₴"}]
[null,"Інвестиційні рахунки",{"v":500,"d":"500 ₴"}]
[null,"Їжа",{"v":425,"d":"425 ₴"}]
[null,"Медицина",{"v":500,"d":"500 ₴"}]
[null,"Особисте",{"v":100,"d":"100 ₴"}]
[null,"Розваги",{"v":112,"d":"112 ₴"}]
[null,"Транспорт",{"v":925,"d":"925 ₴"}]
[null,"Загальний підсумок",{"v":10742,"d":"10,742 ₴"}]